bitfinex/quotes_BTCUSD_20250328
["timestamp","ask_amount","ask_price","bid_price","bid_amount"]
[1743173994159,8e-07,84292.0,84291.0,0.46646254]
[1743173994370,0.2491338,84292.0,84291.0,0.0201689]
[1743173994550,0.28859114,84292.0,84291.0,0.0201689]
[1743173994751,0.08254541,84292.0,84291.0,0.0201689]
[1743173995401,0.08254541,84292.0,84291.0,0.0141689]
[1743173995608,0.31981541,84292.0,84291.0,0.0141689]
[1743173995782,0.33167841,84292.0,84291.0,0.0131689]
[1743173995981,0.31981541,84292.0,84291.0,0.0101689]
[1743173996231,0.33167841,84292.0,84291.0,0.0101689]
[1743173996522,0.33167841,84292.0,84291.0,0.0121689]
[1743173996733,0.63167841,84292.0,84291.0,0.0121689]
[1743173996878,0.63267841,84292.0,84291.0,0.0121689]
[1743173999456,1.23688295,84292.0,84291.0,0.0121689]
[1743173999655,1.17900516,84292.0,84291.0,0.0121689]
[1743174000082,1.31348516,84292.0,84291.0,0.0121689]
[1743174000425,1.29794431,84292.0,84291.0,0.0081989]
[1743174000656,1.30094431,84292.0,84291.0,0.0081989]
[1743174000967,1.31548516,84292.0,84253.0,0.24770923]
[1743174001176,0.011866,84273.0,84268.0,0.237338]
[1743174001376,0.011866,84273.0,84268.0,0.237337]
[1743174001580,0.311865,84279.0,84273.0,0.011866]
[1743174001788,0.3,84281.0,84276.0,0.24918]
[1743174001991,0.0751,84287.0,84276.0,0.24918]
[1743174001992,0.237298,84282.0,84276.0,0.011865]
[1743174002192,0.02364308,84280.0,84279.0,0.011865]
[1743174002399,0.011867,84266.0,84250.0,0.00033]
[1743174002604,0.237361,84260.0,84256.0,0.011868]
[1743174002810,0.011868,84254.0,84250.0,0.00033]
[1743174003015,0.011868,84256.0,84250.0,0.00033]
[1743174003230,0.011868,84258.0,84252.0,0.011869]
[1743174003442,0.02376665,84259.0,84250.0,0.012199]
[1743174003443,0.02376665,84259.0,84250.0,0.00033]
[1743174003655,0.0474,84268.0,84262.0,0.011867]
[1743174003862,0.087465,84276.0,84275.0,0.011865]
[1743174003863,0.3,84276.0,84275.0,0.011865]
[1743174004067,0.011864,84285.0,84275.0,0.011865]
[1743174004068,0.237269,84293.0,84278.0,0.249174]
[1743174004272,0.237269,84293.0,84287.0,0.237283]
[1743174004273,0.3,84291.0,84287.0,0.237283]
[1743174004515,0.3,84291.0,84279.0,0.24917]
[1743174004516,0.011863,84289.0,84279.0,0.24917]
[1743174004724,0.3,84282.0,84275.0,0.249181]
[1743174004936,0.3,84282.0,84278.0,0.237309]
[1743174005099,0.3,84282.0,84280.0,0.249168]
[1743174005325,0.011865,84279.0,84269.0,0.011866]
[1743174005521,0.3,84282.0,84274.0,0.011866]
[1743174005685,0.311864,84282.0,84274.0,0.011866]
[1743174005892,0.249166,84281.0,84275.0,0.249183]
[1743174006174,0.237307,84279.0,84275.0,0.252183]
[1743174006373,0.237307,84279.0,84275.0,0.003]
[1743174006536,0.237338,84268.0,84258.0,0.011868]
[1743174006698,0.011866,84270.0,84264.0,0.011867]
[1743174006893,0.237352,84263.0,84259.0,0.237363]
[1743174007167,0.237349,84265.0,84261.0,0.237356]
[1743174007409,0.011866,84274.0,84269.0,0.237335]
[1743174007604,0.237337,84269.0,84264.0,0.237347]
[1743174007807,0.3,84269.0,84262.0,0.011867]
[1743174008097,0.237342,84267.0,84263.0,0.237352]
[1743174008319,0.237339,84268.0,84264.0,0.237348]
[1743174008495,0.237338,84268.0,84264.0,0.237348]
[1743174008631,0.54933495,84269.0,84264.0,0.237348]
[1743174008842,0.011866,84268.0,84262.0,0.237353]
[1743174009045,0.249205,84268.0,84263.0,0.011867]
[1743174009244,0.237341,84267.0,84263.0,0.249217]
[1743174009510,0.249204,84268.0,84265.0,0.237346]
[1743174009730,0.011867,84266.0,84260.0,0.011868]
[1743174009960,0.24921,84266.0,84264.0,0.001]
[1743174010169,0.237346,84266.0,84264.0,0.001]
[1743174010377,0.011867,84266.0,84259.0,0.011868]
[1743174010548,0.237349,84264.0,84260.0,0.237359]
[1743174010754,0.011867,84267.0,84263.0,0.002]
[1743174010951,0.237352,84265.0,84260.0,0.011868]
[1743174011152,0.237357,84261.0,84256.0,0.011868]
[1743174011363,0.011868,84257.0,84247.0,0.011869]
[1743174011564,0.237361,84260.0,84257.0,0.237366]
[1743174011906,0.237363,84259.0,84256.0,0.237371]
[1743174012708,0.237366,84258.0,84253.0,0.237374]
[1743174013006,0.011868,84258.0,84253.0,0.237374]
[1743174013229,0.249237,84257.0,84256.0,0.003]
[1743174013441,0.249234,84258.0,84256.0,0.003]
[1743174013654,0.23746795,84269.0,84260.0,0.011868]
[1743174013866,0.3,84262.0,84259.0,0.237362]
[1743174014325,0.31208082,84262.0,84259.0,0.237362]
[1743174014522,0.31208082,84262.0,84260.0,0.237359]
[1743174014724,0.31208082,84262.0,84258.0,0.011868]
[1743174014725,0.047,84275.0,84268.0,0.237338]
[1743174015063,0.237316,84276.0,84268.0,0.249204]
[1743174015256,0.3,84275.0,84268.0,0.249204]
[1743174015841,0.0120427,84274.0,84268.0,0.249204]
[1743174016318,0.0120427,84274.0,84250.0,0.00033]
[1743174016319,0.011867,84265.0,84250.0,0.00033]
[1743174016512,0.011867,84265.0,84252.0,0.011869]
[1743174016513,0.237365,84259.0,84252.0,0.011869]
[1743174016719,0.237363,84259.0,84253.0,0.237377]
[1743174016919,0.249231,84259.0,84253.0,0.237377]
[1743174017119,0.249231,84259.0,84255.0,0.237542]
[1743174017263,0.237366,84258.0,84255.0,0.237542]
[1743174017464,0.237369,84257.0,84255.0,0.000169]
[1743174017668,0.237366,84258.0,84255.0,0.000169]
[1743174018088,0.237369,84257.0,84255.0,0.000169]
[1743174018335,0.237371,84256.0,84255.0,0.000169]
[1743174019131,0.237369,84257.0,84255.0,0.000169]
[1743174019350,0.237371,84256.0,84255.0,0.000169]
[1743174019550,0.240371,84256.0,84255.0,0.000169]
[1743174019886,0.003,84256.0,84255.0,0.000169]
[1743174020011,0.001,84257.0,84255.0,0.000169]
[1743174020217,0.001,84257.0,84255.0,0.237542]
[1743174020429,0.02318845,84256.0,84255.0,0.000169]
[1743174021148,0.26055945,84256.0,84255.0,0.000169]
[1743174021758,0.27242745,84256.0,84255.0,0.000169]
[1743174021960,0.3875057,84256.0,84255.0,0.000169]
[1743174022168,0.28430705,84256.0,84255.0,0.000169]
[1743174022369,0.58430705,84256.0,84255.0,0.000169]
[1743174023383,0.69856469,84256.0,84255.0,0.000169]
[1743174023779,0.58430705,84256.0,84255.0,0.000169]
[1743174025727,0.33506805,84256.0,84255.0,0.000169]
[1743174025945,0.32618845,84256.0,84255.0,0.249411]
[1743174026147,0.32618845,84256.0,84255.0,0.000169]
[1743174026510,0.02618845,84256.0,84255.0,0.237543]
[1743174026709,0.003,84256.0,84255.0,0.249411]
[1743174027836,0.003,84256.0,84255.0,0.250411]
[1743174028221,0.003,84256.0,84255.0,0.249411]
[1743174028421,0.1,84257.0,84256.0,0.249239]
[1743174028967,0.1,84257.0,84256.0,0.36349664]
[1743174029122,0.1,84257.0,84256.0,0.249239]
[1743174029755,0.337371,84257.0,84255.0,0.000169]
[1743174029957,0.1,84257.0,84255.0,0.000169]
[1743174030160,0.1,84257.0,84256.0,0.238371]
[1743174030366,0.337369,84257.0,84256.0,0.001]
[1743174030566,0.1,84257.0,84256.0,0.001]
[1743174031001,0.1,84257.0,84256.0,0.002]
[1743174031245,0.1,84257.0,84256.0,0.001]
[1743174031461,0.337369,84257.0,84256.0,0.001]
[1743174032049,0.1,84257.0,84256.0,0.001]
[1743174032469,0.649237,84257.0,84256.0,0.001]
[1743174032595,0.67526888,84257.0,84256.0,0.001]
[1743174033988,0.78952652,84257.0,84256.0,0.001]
[1743174034190,0.67526888,84257.0,84256.0,0.001]
[1743174034905,0.67326888,84257.0,84256.0,0.001]
[1743174035147,0.549239,84256.0,84255.0,0.000169]
[1743174035396,0.66349664,84256.0,84255.0,0.000169]
[1743174036561,0.66549664,84256.0,84255.0,0.000169]
[1743174037503,1.0830249,84256.0,84255.0,0.000169]
[1743174037703,1.0830249,84256.0,84250.0,0.00033]
[1743174037704,0.549254,84251.0,84250.0,0.00033]
[1743174037933,1.09558075,84251.0,84250.0,0.00033]
[1743174038450,1.14178075,84251.0,84250.0,0.00033]
[1743174038707,1.25603839,84251.0,84250.0,0.00033]
[1743174039112,1.26103839,84251.0,84250.0,0.00033]
[1743174039497,1.14178075,84251.0,84250.0,0.00033]
[1743174039699,1.1272399,84251.0,84250.0,0.00033]
[1743174039899,1.2624799,84251.0,84250.0,0.00033]
[1743174040078,1.2674799,84251.0,84250.0,0.00033]
[1743174040280,1.0860399,84251.0,84250.0,0.00033]
[1743174040708,1.18861088,84251.0,84250.0,0.00033]
[1743174040903,1.20315173,84251.0,84250.0,0.00033]
[1743174041366,1.33867173,84251.0,84250.0,0.00033]
[1743174041573,1.41667173,84251.0,84250.0,0.00033]
[1743174042059,1.41667173,84251.0,84250.0,1e-06]
[1743174043440,1.98155173,84251.0,84250.0,1e-06]
[1743174045622,1.98139173,84251.0,84250.0,1e-06]
[1743174047242,1.87882075,84251.0,84250.0,1e-06]
[1743174047441,1.7865999,84251.0,84250.0,1e-06]
[1743174047684,1.6509199,84251.0,84250.0,1e-06]
[1743174047811,1.22479326,84251.0,84250.0,1e-06]
[1743174048018,0.42252826,84251.0,84250.0,1e-06]
[1743174048217,0.42252826,84251.0,84250.0,0.249258]
[1743174048618,0.42252826,84251.0,84250.0,0.329058]
[1743174049036,0.41752826,84251.0,84250.0,0.329058]
[1743174049236,0.42152826,84251.0,84250.0,0.329058]
[1743174049442,0.42152826,84251.0,84250.0,0.317189]
[1743174049664,0.67178226,84251.0,84250.0,1e-06]
[1743174049970,0.67178226,84251.0,84250.0,0.00017]
[1743174050375,0.97178226,84251.0,84250.0,0.00017]
[1743174050747,1.05325399,84251.0,84250.0,0.00017]
[1743174051154,0.97178226,84251.0,84250.0,0.00017]
[1743174055742,0.42252826,84251.0,84250.0,0.237558]
[1743174055973,0.005,84251.0,84250.0,0.44208464]
[1743174056158,0.005,84251.0,84250.0,0.327827]
[1743174057862,19.004,84251.0,84250.0,0.327827]
[1743174058245,19.0,84251.0,84250.0,0.327827]
[1743174058609,19.004,84251.0,84250.0,0.327827]
[1743174059025,19.001,84251.0,84250.0,0.327827]
[1743174059431,19.002,84251.0,84250.0,0.44208464]
[1743174059685,19.001,84251.0,84250.0,0.44208464]
[1743174060076,19.001,84251.0,84250.0,0.327827]
[1743174060623,19.001,84251.0,84250.0,0.00017]
[1743174060819,19.250254,84251.0,84250.0,0.00017]
[1743174061045,19.250254,84251.0,84250.0,0.00117]
[1743174061215,19.238385,84251.0,84250.0,0.00117]
[1743174061416,19.250254,84251.0,84250.0,0.00117]
[1743174061599,19.250592,84251.0,84250.0,0.00117]
[1743174061794,19.550592,84251.0,84250.0,0.00117]
[1743174062424,19.56241054,84251.0,84250.0,0.00117]
[1743174062613,19.56141054,84251.0,84250.0,0.00117]
[1743174062813,19.56141054,84251.0,84250.0,0.00017]
[1743174063013,19.56441054,84251.0,84250.0,0.00017]
[1743174063694,19.67866818,84251.0,84250.0,0.00017]
[1743174065105,19.72256768,84251.0,84250.0,0.00017]
[1743174065307,0.549286,84240.0,84239.0,0.000169]
[1743174065509,0.66354364,84240.0,84239.0,0.000169]
[1743174065711,0.67224367,84240.0,84239.0,0.000169]
[1743174066039,0.55798603,84240.0,84239.0,0.000169]
[1743174066612,0.69565989,84240.0,84239.0,0.000169]
[1743174067369,0.69565989,84240.0,84239.0,7.239e-05]
[1743174067535,0.69965989,84240.0,84239.0,7.239e-05]
[1743174068136,0.69665989,84240.0,84239.0,7.239e-05]
[1743174068472,0.70065989,84240.0,84239.0,7.239e-05]
[1743174072222,0.83641989,84240.0,84239.0,7.239e-05]
[1743174072711,0.83541989,84240.0,84239.0,7.239e-05]
[1743174073498,1.25294815,84240.0,84239.0,7.239e-05]
[1743174073723,1.38174664,84240.0,84239.0,7.239e-05]
[1743174073921,1.94670664,84240.0,84239.0,3.9e-07]
[1743174074120,0.249331,84225.0,84224.0,2.8e-07]
[1743174074326,0.549364,84214.0,84206.0,0.0001689]
[1743174074532,0.96689226,84214.0,84206.0,0.0001689]
[1743174074688,0.99121872,84214.0,84208.0,0.0793]
[1743174075120,0.99121872,84214.0,84206.0,0.0001689]
[1743174075314,1.12001721,84214.0,84206.0,0.0001689]
[1743174075520,1.13209872,84214.0,84206.0,0.0001689]
[1743174075721,1.13309872,84214.0,84206.0,0.0001689]
[1743174075918,1.13323154,84214.0,84206.0,0.0001689]
[1743174076355,1.14518431,84214.0,84206.0,0.0001689]
[1743174078128,0.59177605,84214.0,84206.0,0.0001689]
[1743174078705,0.59177605,84214.0,84207.0,0.237508]
[1743174078907,0.34241205,84214.0,84212.0,0.011874]
[1743174079265,0.00613282,84214.0,84213.0,0.332036]
[1743174080554,0.00613282,84214.0,84213.0,0.082669]
[1743174080736,0.00613282,84214.0,84213.0,0.332036]
[1743174081331,0.00613282,84214.0,84213.0,0.320162]
[1743174081542,0.54362282,84214.0,84213.0,0.082669]
[1743174082033,0.54362282,84214.0,84213.0,0.000169]
[1743174082034,0.55549682,84214.0,84213.0,0.000169]
[1743174082437,0.62548629,84214.0,84213.0,0.000169]
[1743174082759,0.55549682,84214.0,84213.0,0.000169]
[1743174082961,0.55549682,84214.0,84213.0,0.010169]
[1743174084508,0.66975446,84214.0,84213.0,0.010169]
[1743174088920,0.55549682,84214.0,84213.0,0.010169]
[1743174089283,0.00613282,84214.0,84213.0,0.259536]
[1743174090837,0.00113282,84214.0,84213.0,0.259536]
[1743174091273,0.00313282,84214.0,84213.0,0.259536]
[1743174091953,0.00213282,84214.0,84213.0,0.259536]
[1743174092176,0.00213282,84214.0,84213.0,0.010169]
[1743174092600,0.25149682,84214.0,84213.0,0.010169]
[1743174093115,0.55149682,84214.0,84213.0,0.010169]
[1743174093601,0.66575446,84214.0,84213.0,0.010169]
[1743174094198,1.08328272,84214.0,84213.0,0.009169]
[1743174094402,1.08128272,84214.0,84213.0,0.009169]
[1743174094632,1.19554036,84214.0,84213.0,0.009169]
[1743174094873,1.08428272,84214.0,84213.0,0.009169]
[1743174095293,1.08128272,84214.0,84213.0,0.009169]
[1743174095631,1.08628272,84214.0,84213.0,0.009169]
[1743174096278,1.10082357,84214.0,84213.0,0.009169]
[1743174096507,0.56391285,84211.0,84210.0,8.6e-07]
[1743174096665,0.549402,84201.0,84195.0,0.2]
[1743174096982,1.0811879,84201.0,84195.0,0.2]
[1743174097156,1.2184679,84201.0,84195.0,0.2]
[1743174098139,1.23304875,84201.0,84195.0,0.2]
[1743174098770,1.23804875,84201.0,84195.0,0.2]
[1743174099006,1.37659247,84201.0,84195.0,0.2]
[1743174099213,1.95079624,84201.0,84195.0,0.2]
[1743174100447,1.95179624,84201.0,84195.0,0.2]
[1743174100622,1.81347624,84201.0,84195.0,0.2]
[1743174100825,1.43527575,84201.0,84195.0,0.2]
[1743174101023,1.82291775,84201.0,84195.0,0.2]
[1743174101233,1.65979798,84201.0,84198.0,0.237533]
[1743174101429,1.65979798,84201.0,84195.0,0.2]
[1743174101430,1.68286034,84201.0,84195.0,0.437542]
[1743174101670,1.68786034,84201.0,84195.0,0.2]
[1743174101871,1.69973634,84201.0,84195.0,0.437541]
[1743174102324,1.72266677,84201.0,84195.0,0.2]
[1743174102498,1.69473634,84201.0,84195.0,0.2]
[1743174102709,1.69973634,84201.0,84195.0,0.2]
[1743174103059,0.74781434,84201.0,84199.0,0.237532]
[1743174103488,0.74781434,84201.0,84200.0,0.24700336]
[1743174103691,0.74681434,84201.0,84200.0,0.24700336]
[1743174103899,0.74781434,84201.0,84200.0,0.24700336]
[1743174104097,0.74781434,84201.0,84200.0,0.49640836]
[1743174104296,0.74781434,84201.0,84200.0,0.24700336]
[1743174104617,0.74781434,84201.0,84200.0,0.48453236]
[1743174104995,0.98534034,84201.0,84200.0,0.24700336]
[1743174105196,0.74781434,84201.0,84200.0,0.24700336]
[1743174105597,0.98534034,84201.0,84200.0,0.24700336]
[1743174105803,0.99721634,84201.0,84200.0,0.24700336]
[1743174106610,1.11147398,84201.0,84200.0,0.24700336]
[1743174108953,0.99721634,84201.0,84200.0,0.24700336]
[1743174109165,0.74781434,84201.0,84200.0,0.24700336]
[1743174109365,0.74781434,84201.0,84200.0,0.48453236]
[1743174109510,0.74781434,84201.0,84200.0,0.49640836]
[1743174109896,0.33028608,84201.0,84200.0,0.49640836]
[1743174110455,0.33028608,84201.0,84200.0,0.24700336]
[1743174110691,0.33028608,84201.0,84200.0,0.48453236]
[1743174110898,0.33028608,84201.0,84200.0,0.24700336]
[1743174111102,0.56781208,84201.0,84200.0,0.24717226]
[1743174111314,0.03028608,84201.0,84200.0,0.49657726]
[1743174111540,0.03028608,84201.0,84200.0,0.62697726]
[1743174111851,0.02528608,84201.0,84200.0,0.62697726]
[1743174112054,0.02528608,84201.0,84200.0,0.7412349]
[1743174112253,0.02728608,84201.0,84200.0,0.7412349]
[1743174112703,0.003,84201.0,84200.0,0.7412349]
[1743174112880,0.003,84201.0,84200.0,0.10915083]
[1743174113218,0.003,84201.0,84200.0,0.34905466]
[1743174113452,0.011876,84197.0,84195.0,0.2]
[1743174113655,0.011876,84200.0,84195.0,0.2]
[1743174113869,0.549417,84196.0,84195.0,0.2]
[1743174115472,0.552417,84196.0,84195.0,0.2]
[1743174117753,0.549417,84196.0,84195.0,0.2]
[1743174118148,0.554417,84196.0,84195.0,0.2]
[1743174120083,0.57799136,84196.0,84195.0,0.2]
[1743174120470,0.72976236,84196.0,84195.0,0.2]
[1743174121132,0.74430321,84196.0,84195.0,0.2]
[1743174123057,0.74430321,84196.0,84195.0,0.2001689]
[1743174123974,0.79360321,84196.0,84195.0,0.2001689]
[1743174124929,0.78860321,84196.0,84195.0,0.2001689]
[1743174125507,1.21113147,84196.0,84195.0,0.2001689]
[1743174125938,1.20713147,84196.0,84195.0,0.2001689]
[1743174126057,1.21213147,84196.0,84195.0,0.2001689]
[1743174126269,1.77741147,84196.0,84195.0,0.2001689]
[1743174127140,1.91433147,84196.0,84195.0,0.2001689]
[1743174128120,1.91429147,84196.0,84195.0,0.2001689]
[1743174129328,0.56397285,84191.0,84190.0,3.5e-07]
[1743174129538,0.56397285,84191.0,84180.0,4e-08]
[1743174129539,0.56400285,84181.0,84180.0,4e-08]
[1743174129743,0.549462,84181.0,84180.0,4e-08]
[1743174130223,0.011877,84194.0,84185.0,0.011878]
[1743174130395,0.237561,84189.0,84185.0,0.249448]
[1743174130599,0.237583,84181.0,84180.0,4e-08]
[1743174130777,0.014877,84191.0,84180.0,4e-08]
[1743174130778,0.011878,84189.0,84180.0,4e-08]
[1743174130964,0.249454,84184.0,84180.0,4e-08]
[1743174131170,0.3,84185.0,84181.0,0.237582]
[1743174131366,0.3,84185.0,84180.0,4e-08]
[1743174131367,0.3,84185.0,84182.0,0.23758]
[1743174131667,0.3,84185.0,84180.0,0.01187904]
[1743174131882,0.3,84185.0,84182.0,0.237579]
[1743174132462,0.3,84185.0,84180.0,4e-08]
[1743174132463,0.549462,84181.0,84180.0,4e-08]
[1743174132668,0.67826049,84181.0,84180.0,4e-08]
[1743174132786,0.80131964,84181.0,84180.0,4e-08]
[1743174133466,1.2188479,84181.0,84180.0,4e-08]
[1743174134652,1.2238479,84181.0,84180.0,4e-08]
[1743174134834,1.10959026,84181.0,84180.0,4e-08]
[1743174135030,1.0862479,84181.0,84180.0,4e-08]
[1743174135271,0.97199026,84181.0,84180.0,4e-08]
[1743174135902,0.97199026,84181.0,84180.0,0.00016894]
[1743174136205,0.72252826,84181.0,84180.0,0.00016894]
[1743174136339,0.96011126,84181.0,84180.0,0.00016894]
[1743174136521,1.20050554,84181.0,84180.0,0.00016894]
[1743174136717,1.20250554,84181.0,84180.0,0.00016894]
[1743174136964,1.0882479,84181.0,84180.0,7.227e-05]
[1743174137202,0.249491,84171.0,84170.0,0.000169]
[1743174137345,0.36374864,84171.0,84170.0,0.000169]
[1743174137524,0.249491,84171.0,84170.0,0.000169]
[1743174137982,0.386091,84171.0,84170.0,0.000169]
[1743174138916,0.387091,84171.0,84170.0,0.000169]
[1743174139741,0.50134864,84171.0,84170.0,0.000169]
[1743174139898,0.52339711,84171.0,84170.0,0.000169]
[1743174140115,0.53257001,84171.0,84170.0,0.000169]
[1743174140817,0.53757001,84171.0,84170.0,0.000169]
[1743174141216,0.39489001,84171.0,84170.0,0.000169]
[1743174141444,0.53249001,84171.0,84170.0,0.000169]
[1743174141646,0.53649001,84171.0,84170.0,0.000169]
[1743174141961,0.53849001,84171.0,84170.0,0.000169]
[1743174142159,0.65274765,84171.0,84170.0,0.000169]
[1743174142601,0.40089001,84171.0,84170.0,0.000169]
[1743174142773,0.70089001,84171.0,84170.0,0.000169]
[1743174143199,1.11841827,84171.0,84170.0,0.000169]
[1743174144393,1.11091065,84171.0,84170.0,0.000169]
[1743174145249,1.0963698,84171.0,84170.0,0.000169]
[1743174145750,1.22516829,84171.0,84170.0,0.000169]
[1743174146255,1.30136829,84171.0,84170.0,0.000169]
[1743174146455,1.34926829,84171.0,84170.0,0.000169]
[1743174146856,1.27306829,84171.0,84170.0,0.000169]
[1743174148457,1.24839065,84171.0,84170.0,0.000169]
[1743174148658,1.2338498,84171.0,84170.0,0.000169]
[1743174148998,1.2338898,84171.0,84170.0,0.000169]
[1743174150043,1.24843065,84171.0,84170.0,0.000169]
[1743174151719,1.24835065,84171.0,84170.0,0.000169]
[1743174151922,1.36260829,84171.0,84170.0,0.000169]
[1743174152333,1.36256829,84171.0,84170.0,0.000169]
[1743174152916,1.24831065,84171.0,84170.0,0.000169]
[1743174156789,1.81379065,84171.0,84170.0,0.000169]
[1743174157354,0.249538,84155.0,84154.0,0.01205263]
[1743174157555,1.2184439,84155.0,84154.0,0.01205263]
[1743174157928,1.0813239,84155.0,84154.0,0.01205263]
[1743174158056,1.2184839,84155.0,84154.0,0.01205263]
[1743174158568,1.21861658,84155.0,84154.0,0.01205263]
[1743174159019,1.21861658,84155.0,84154.0,0.01305263]
[1743174159206,1.21881658,84155.0,84154.0,0.01305263]
[1743174159581,1.21981658,84155.0,84154.0,0.01305263]
[1743174159797,1.23147302,84155.0,84154.0,0.01305263]
[1743174159997,1.23047302,84155.0,84154.0,0.01305263]
[1743174160399,1.23247302,84155.0,84154.0,0.01305263]
[1743174161766,1.36127151,84155.0,84154.0,0.01305263]
[1743174161981,1.36127151,84155.0,84130.0,4.1e-07]
[1743174161982,0.237724,84131.0,84130.0,4.1e-07]
[1743174162185,0.237724,84131.0,84110.0,0.10004263]
[1743174162186,0.54811135,84116.0,84110.0,0.10004263]
[1743174162594,0.43776,84116.0,84110.0,0.10004263]
[1743174162733,0.56390564,84116.0,84115.0,7.232e-05]
[1743174162934,0.42614564,84116.0,84115.0,7.232e-05]
[1743174163137,0.93410326,84116.0,84115.0,7.232e-05]
[1743174163376,0.30892936,84116.0,84115.0,7.232e-05]
[1743174163586,0.45928191,84116.0,84115.0,7.232e-05]
[1743174163790,0.34527602,84116.0,84115.0,7.232e-05]
[1743174164003,0.34034666,84116.0,84115.0,0.01196032]
[1743174164199,0.02833949,84116.0,84115.0,7.232e-05]
[1743174164430,0.02533949,84116.0,84115.0,0.01196032]
[1743174165094,0.02533949,84116.0,84115.0,7.232e-05]
[1743174165307,0.02533949,84116.0,84115.0,0.01196032]
[1743174165668,0.02433949,84116.0,84115.0,0.01196032]
[1743174166078,0.02533949,84116.0,84115.0,0.01196032]
[1743174166315,0.02433949,84116.0,84115.0,0.01196032]
[1743174166728,0.02833949,84116.0,84115.0,0.01296032]
[1743174167164,0.02433949,84116.0,84115.0,0.01296032]
[1743174167611,0.02533949,84116.0,84115.0,0.01296032]
[1743174169651,0.02533949,84116.0,84115.0,0.12949873]
[1743174169652,0.00113258,84116.0,84115.0,0.12949873]
[1743174170221,0.00113258,84116.0,84115.0,0.12712126]
[1743174170428,0.00113258,84116.0,84115.0,0.01286362]
[1743174171194,0.00113258,84116.0,84115.0,0.001]
[1743174171397,0.00113258,84116.0,84115.0,0.012888]
[1743174172057,0.00013258,84116.0,84115.0,0.012888]
[1743174173132,0.00013258,84116.0,84115.0,0.013057]
[1743174175921,0.00013258,84116.0,84115.0,0.01543442]
[1743174176622,0.00013258,84116.0,84115.0,0.12969206]
[1743174176823,0.00013258,84116.0,84115.0,0.21029206]
[1743174177025,0.00013258,84116.0,84115.0,0.51217906]
[1743174177229,0.00013258,84116.0,84115.0,0.44568364]
[1743174178085,0.00013258,84116.0,84115.0,0.49068364]
[1743174179056,0.00013258,84116.0,84115.0,1.64182064]
[1743174179200,0.00013258,84116.0,84115.0,1.10529264]
[1743174179525,0.41752826,84137.0,84136.0,0.249595]
[1743174179756,0.41752826,84137.0,84136.0,0.25003858]
[1743174179904,0.44173295,84137.0,84136.0,0.25003858]
[1743174180723,0.44573295,84137.0,84136.0,0.25003858]
[1743174180908,0.76474743,84137.0,84136.0,0.00044358]
[1743174181105,0.68443995,84137.0,84136.0,0.00044358]
[1743174181307,0.68443995,84137.0,84136.0,0.23815358]
[1743174181308,0.44673295,84137.0,84136.0,0.23815358]
[1743174181969,0.44273295,84137.0,84136.0,0.00044358]
[1743174182123,0.44173295,84137.0,84136.0,0.00044358]
[1743174182348,0.69532495,84137.0,84136.0,0.00044358]
[1743174182557,0.69632495,84137.0,84136.0,0.00044358]
[1743174184208,0.44673295,84137.0,84136.0,0.00044358]
[1743174184410,0.69632495,84137.0,84136.0,0.00044358]
[1743174185972,0.69666315,84137.0,84136.0,0.00044358]
[1743174187854,0.44707115,84137.0,84136.0,0.00044358]
[1743174187974,0.69666315,84137.0,84136.0,0.00044358]
[1743174188174,0.44707115,84137.0,84136.0,0.23815358]
[1743174188421,0.44707115,84137.0,84136.0,0.25003858]
[1743174189611,0.0053382,84137.0,84136.0,0.48689622]
[1743174190021,0.0172232,84137.0,84136.0,0.00044358]
[1743174190223,0.02866633,84137.0,84136.0,0.00044358]
[1743174190476,0.0172232,84137.0,84136.0,0.00044358]
[1743174190885,0.0162232,84137.0,84136.0,0.00044358]
[1743174191116,0.13048084,84137.0,84136.0,0.00044358]
[1743174191408,0.85086186,84137.0,84136.0,0.00044358]
[1743174191575,0.8480091,84137.0,84136.0,0.00044358]
[1743174191891,0.8440091,84137.0,84136.0,0.00044358]
[1743174192310,0.8470091,84137.0,84136.0,0.00044358]
[1743174192454,0.86154995,84137.0,84136.0,0.00044358]
[1743174192657,0.85854995,84137.0,84136.0,0.00044358]
[1743174193079,0.87136418,84137.0,84136.0,0.00144358]
[1743174193254,0.87136418,84137.0,84136.0,0.00044358]
[1743174193804,0.86836418,84137.0,84136.0,0.00044358]
[1743174193956,0.94696418,84137.0,84136.0,0.00044358]
[1743174194138,1.06122182,84137.0,84136.0,0.00044358]
[1743174194344,1.06522182,84137.0,84136.0,0.00044358]
[1743174195009,1.07022182,84137.0,84136.0,5.8e-07]
[1743174195208,0.249654,84116.0,84115.0,0.000169]
[1743174195445,1.0814399,84116.0,84115.0,0.000169]
[1743174196420,1.0814399,84116.0,84115.0,0.001169]
[1743174196801,1.0814399,84116.0,84115.0,0.000169]
[1743174197179,1.11274226,84116.0,84115.0,0.000169]
[1743174198318,1.2269999,84116.0,84115.0,0.000169]
[1743174198518,1.24957994,84116.0,84115.0,0.000169]
[1743174198717,1.2269999,84116.0,84115.0,0.000169]
[1743174200975,0.97418226,84116.0,84115.0,0.000169]
[1743174201181,1.11274226,84116.0,84115.0,0.000169]
[1743174201590,0.42452826,84116.0,84115.0,0.000169]
[1743174201789,0.256654,84116.0,84115.0,0.000169]
[1743174202403,0.007,84116.0,84115.0,0.012057]
[1743174202612,0.007,84116.0,84115.0,0.41546113]
[1743174202785,0.007,84116.0,84115.0,0.41308364]
[1743174203210,0.007,84116.0,84115.0,1.26330864]
[1743174203409,0.002,84116.0,84115.0,1.24384964]
[1743174203616,0.002,84116.0,84115.0,1.19292864]
[1743174203815,0.005,84116.0,84115.0,1.19292864]
[1743174203979,0.005,84116.0,84115.0,1.20984399]
[1743174204177,0.007,84116.0,84115.0,1.20984399]
[1743174204375,0.005,84116.0,84115.0,1.20984399]
[1743174204600,0.005,84116.0,84115.0,1.23311984]
[1743174204929,0.005,84116.0,84115.0,0.66309484]
[1743174205114,0.005,84116.0,84115.0,1.02691484]
[1743174205312,0.006,84116.0,84115.0,1.02691484]
[1743174205762,0.001,84116.0,84115.0,1.02691484]
[1743174205938,0.002,84116.0,84115.0,1.02691484]
[1743174206168,0.002,84116.0,84115.0,1.37145569]
[1743174206550,0.001,84116.0,84115.0,1.37145569]